bitfinex/quotes_SOLUSD_20250217
["timestamp","ask_amount","ask_price","bid_price","bid_amount"]
[1739779036672,0.03,182.15,182.11,13.41184853]
[1739779036837,0.53,182.15,182.11,13.41184853]
[1739779037037,0.53,182.15,182.14,23.84722963]
[1739779037745,0.03,182.15,182.14,27.69032963]
[1739779038156,0.53,182.15,182.14,27.69032963]
[1739779038361,0.53,182.15,182.14,13.41184853]
[1739779039983,0.53,182.15,182.12,20.1465797]
[1739779040277,0.5,182.13,182.12,16.3030797]
[1739779040569,0.5,182.13,182.12,29.71492823]
[1739779040777,0.5,182.14,182.13,13.41184853]
[1739779042379,0.5,182.14,182.12,17.25544853]
[1739779043949,0.5,182.09,182.05,9.6126]
[1739779044157,0.5,182.09,182.06,16.3030797]
[1739779044381,0.5,182.09,182.07,16.3030797]
[1739779045073,0.5,182.09,182.08,13.41184853]
[1739779045481,0.5,182.09,182.08,29.71492823]
[1739779045980,0.5,182.09,182.08,17.25624853]
[1739779048006,0.5,182.11,182.09,13.41184853]
[1739779048175,0.5,182.11,182.1,16.3030797]
[1739779048580,0.03,182.15,182.11,13.41184853]
[1739779048581,0.5,182.12,182.11,13.41184853]
[1739779048788,0.5,182.14,182.11,29.71492823]
[1739779048977,0.5,182.14,182.13,13.41184853]
[1739779049589,0.5,182.14,182.12,13.41184853]
[1739779050405,0.5,182.14,182.12,17.25544853]
[1739779050882,0.5,182.14,182.12,33.55852823]
[1739779052562,0.5,182.14,182.12,29.71492823]
[1739779052763,0.5,182.13,182.12,13.41184853]
[1739779054960,0.5,182.13,182.12,17.25544853]
[1739779055165,0.5,182.13,182.12,33.55852823]
[1739779056188,0.5,182.13,182.12,13.41184853]
[1739779058387,0.03,182.14,182.12,33.55842823]
[1739779058595,0.03,182.14,182.13,23.83745043]
[1739779061291,0.03,182.14,182.13,27.68085043]
[1739779069809,0.03,182.15,182.13,27.68085043]
[1739779069810,0.03,182.15,182.14,65.53985803]
[1739779070104,0.03,182.18,182.14,65.53985803]
[1739779070309,0.03,182.18,182.17,43.83745043]
[1739779070804,0.03,182.18,182.17,47.67995043]
[1739779071993,0.5,182.25,182.18,13.41184853]
[1739779072195,0.5,182.25,182.22,10.4256019]
[1739779072381,0.5,182.25,182.23,13.41184853]
[1739779072577,0.5,182.25,182.23,23.83745043]
[1739779072994,0.5,182.25,182.23,13.41184853]
[1739779074807,0.5,182.25,182.23,23.83745043]
[1739779076209,0.5,182.26,182.24,10.4256019]
[1739779076395,0.5,182.26,182.25,13.41184853]
[1739779076688,0.5,182.26,182.23,10.4256019]
[1739779076893,0.5,182.26,182.23,13.41184853]
[1739779077210,0.03,182.25,182.23,13.41184853]
[1739779078007,0.03,182.25,182.23,23.83745043]
[1739779078189,0.03,182.25,182.24,10.4256019]
[1739779078391,0.5,182.12,182.08,8.62070246]
[1739779078598,0.5,182.09,182.08,8.62070246]
[1739779080497,3.8438,182.11,182.08,8.62070246]
[1739779080805,20.16109151,182.11,182.08,8.62070246]
[1739779081306,20.16109151,182.11,182.04,13.41184853]
[1739779081809,40.16109151,182.11,182.04,13.41184853]
[1739779082006,16.31729151,182.09,182.01,16.31729151]
[1739779082307,16.31729151,182.09,182.02,13.41184853]
[1739779082505,23.8438,182.11,182.02,13.41184853]
[1739779082714,3.8435,182.13,182.05,29.72914004]
[1739779082896,20.16079151,182.13,182.05,29.72914004]
[1739779083089,20.16079151,182.13,182.07,13.41184853]
[1739779083615,16.31729151,182.12,182.06,13.41184853]
[1739779084890,16.31729151,182.12,182.05,13.41184853]
[1739779085083,20.16089151,182.12,182.05,13.41184853]
[1739779087616,20.16089151,182.12,182.05,29.72914004]
[1739779087910,1.02966734,182.19,182.1,29.72914004]
[1739779088093,16.31729151,182.16,182.1,29.72914004]
[1739779088294,16.31729151,182.16,182.1,13.41184853]
[1739779088595,20.16009151,182.16,182.1,13.41184853]
[1739779088788,16.31729151,182.14,182.09,13.41184853]
[1739779089601,16.31729151,182.12,182.05,16.31729151]
[1739779089918,16.31729151,182.09,182.01,1.5675]
[1739779090104,16.31729151,182.08,182.01,17.88479151]
[1739779090313,16.31729151,182.08,182.01,16.31729151]
[1739779090498,16.31729151,182.08,182.02,13.41184853]
[1739779091526,16.31729151,182.08,182.02,17.25754853]
[1739779092919,16.31729151,182.07,182.02,17.25754853]
[1739779093118,16.31729151,182.08,182.02,17.25754853]
[1739779093300,16.31729151,182.09,182.02,33.57484004]
[1739779093697,1.0298617,182.11,182.06,29.72914004]
[1739779093897,0.03,182.15,182.11,13.41184853]
[1739779094210,16.31729151,182.14,182.07,16.31729151]
[1739779094711,16.34729151,182.15,182.08,29.72914004]
[1739779095017,16.34729151,182.15,182.09,13.41184853]
[1739779095216,16.31729151,182.14,182.08,13.41184853]
[1739779095717,16.31729151,182.13,182.08,13.41184853]
[1739779096241,16.31729151,182.11,182.04,16.31729151]
[1739779096409,16.31729151,182.11,182.03,20.16279151]
[1739779096606,16.31729151,182.04,181.96,3.8469]
[1739779096802,16.31729151,182.07,181.96,3.8469]
[1739779096803,16.31729151,182.02,181.96,3.8469]
[1739779097128,16.31729151,182.03,181.96,20.16419151]
[1739779097321,16.31729151,182.03,181.97,13.41184853]
[1739779097618,16.31729151,182.03,181.96,20.16419151]
[1739779097797,16.31729151,182.02,181.96,3.8469]
[1739779098001,16.31729151,182.01,181.95,8.68370246]
[1739779098202,16.31729151,182.03,181.95,25.00099397]
[1739779098538,1.03014115,182.07,182.02,16.31729151]
[1739779098821,16.31729151,182.14,182.07,13.41184853]
[1739779099028,23.55081632,182.15,182.07,29.72914004]
[1739779099320,6.2037,182.15,182.09,13.41184853]
[1739779099712,22.52099151,182.15,182.09,13.41184853]
[1739779100100,16.34729151,182.15,182.09,13.41184853]
[1739779100302,0.03,182.15,182.1,13.41184853]
[1739779101322,0.03,182.15,182.11,13.41184853]
[1739779102840,0.03,182.15,182.09,26.08804015]
[1739779103038,26.08804015,182.14,182.07,26.08804015]
[1739779103336,26.08804015,182.12,182.05,46.08804015]
[1739779103827,26.08804015,182.12,182.06,13.41184853]
[1739779104942,26.08804015,182.12,182.06,39.49988868]
[1739779105235,26.08804015,182.12,182.06,13.41184853]
[1739779105829,26.08804015,182.09,182.04,0.063]
[1739779106134,26.08804015,182.08,182.04,0.063]
[1739779106742,26.08804015,182.06,182.04,0.063]
[1739779107439,26.08804015,182.05,182.04,0.063]
[1739779108734,29.93304015,182.05,182.04,0.063]
[1739779111405,1.6342,182.04,181.95,13.47484853]
[1739779111612,26.08804015,181.96,181.95,0.063]
[1739779112715,29.93494015,181.96,181.95,0.063]
[1739779113219,30.96572266,181.96,181.95,0.063]
[1739779113412,20.0,181.92,181.83,0.063]
[1739779113623,1.03105633,181.91,181.83,0.063]
[1739779113839,21.03106414,181.92,181.83,0.063]
[1739779114350,26.08804015,181.89,181.83,0.063]
[1739779114541,26.08804015,181.87,181.83,0.063]
[1739779114845,26.08804015,181.86,181.83,0.063]
[1739779115635,27.11929014,181.86,181.83,0.063]
[1739779115936,26.08804015,181.86,181.83,0.063]
[1739779117035,27.11936682,181.86,181.83,0.063]
[1739779117937,26.08804015,181.87,181.83,0.063]
[1739779118348,26.08804015,181.86,181.83,0.063]
[1739779119927,27.11936495,181.86,181.83,0.063]
[1739779120439,26.08804015,181.86,181.83,0.063]
[1739779122655,30.96849652,181.86,181.83,0.063]
[1739779122948,27.11939652,181.86,181.83,0.063]
[1739779123449,30.96849652,181.86,181.83,0.063]
[1739779124856,27.11939652,181.86,181.83,0.063]
[1739779125234,26.08804015,181.86,181.83,0.063]
[1739779126327,29.93714015,181.86,181.83,0.063]
[1739779128754,41.24607399,181.86,181.83,0.063]
[1739779130353,20.0,181.84,181.83,0.063]
[1739779130552,37.39719787,181.84,181.83,0.063]
[1739779132830,41.24669787,181.84,181.83,0.063]
[1739779138969,16.36559728,181.84,181.83,0.063]
[1739779139152,16.36559728,181.85,181.83,0.063]
[1739779139565,16.36559728,181.84,181.83,0.063]
[1739779140669,21.24644694,181.84,181.83,0.063]
[1739779141499,27.34223995,181.84,181.83,0.063]
[1739779141730,28.34223995,181.84,181.83,0.063]
[1739779141887,16.36559728,181.77,181.76,0.063]
[1739779142763,21.24832588,181.77,181.76,0.063]
[1739779143095,17.39732588,181.77,181.76,0.063]
[1739779143585,1.0317286,181.77,181.76,0.063]
[1739779143793,1.0,181.81,181.78,7.6348]
[1739779143794,2.17256376,181.81,181.78,7.6348]
[1739779144094,2.17256376,181.81,181.8,16.36559728]
[1739779144275,2.17256376,181.81,181.8,29.77744581]
[1739779144463,16.36559728,181.87,181.8,29.77744581]
[1739779144855,16.36559728,181.86,181.78,24.00039728]
[1739779145094,16.36559728,181.85,181.79,3.8505]
[1739779145288,16.36559728,181.85,181.8,13.41184853]
[1739779145875,16.36559728,181.82,181.78,1.5699]
[1739779146051,16.36559728,181.81,181.78,1.5699]
[1739779146255,16.36559728,181.81,181.76,3.9142]
[1739779146578,26.19103951,181.81,181.76,3.9142]
[1739779147852,26.19103951,181.8,181.76,0.063]
[1739779150260,26.19103951,181.79,181.76,0.063]
[1739779150462,26.19103951,181.77,181.76,0.063]
[1739779150875,1.03157859,181.78,181.76,0.063]
[1739779151074,26.19103951,181.77,181.76,0.063]
[1739779156251,26.19103951,181.78,181.76,0.063]
[1739779156675,127.39103951,181.81,181.76,0.063]
[1739779156874,26.19103951,181.81,181.76,0.063]
[1739779157375,27.22265221,181.81,181.76,0.063]
[1739779157675,21.0316127,181.81,181.76,0.063]
[1739779157876,47.22265221,181.81,181.76,13.47484853]
[1739779158868,26.19103951,181.8,181.76,13.47484853]
[1739779159476,27.22264628,181.79,181.76,0.063]
[1739779159667,26.19103951,181.78,181.76,0.063]
[1739779160380,46.19103951,181.81,181.76,3.9141]
[1739779160579,26.19103951,181.8,181.76,0.063]
[1739779160782,24.88182145,181.81,181.76,0.063]
[1739779161159,26.19103951,181.79,181.76,0.063]
[1739779161478,26.19103951,181.8,181.76,0.063]
[1739779167288,26.19103951,181.78,181.76,0.063]
[1739779167463,26.19103951,181.77,181.76,0.063]
[1739779167665,26.19103951,181.8,181.76,0.063]
[1739779167865,26.19103951,181.81,181.76,0.063]
[1739779168267,46.19103951,181.8,181.76,0.063]
[1739779168473,26.19103951,181.81,181.76,0.063]
[1739779168689,16.37049265,181.81,181.76,0.063]
[1739779169673,16.37049265,181.82,181.76,0.063]
[1739779169987,17.40199642,181.82,181.76,0.063]
[1739779170889,21.25199642,181.82,181.76,0.063]
[1739779171767,16.37049265,181.81,181.76,0.063]
[1739779172084,16.37049265,181.8,181.76,0.063]
[1739779172875,16.37049265,181.77,181.76,0.063]
[1739779174183,17.40250633,181.77,181.76,0.063]
[1739779174872,21.25350633,181.77,181.76,0.063]
[1739779175691,20.0,181.74,181.66,13.44184853]
[1739779175875,16.37049265,181.7,181.66,0.03]
[1739779178073,16.37049265,181.68,181.66,0.03]
[1739779178284,1.03207834,181.7,181.66,0.03]
[1739779178285,16.37049265,181.67,181.66,0.03]
[1739779180996,21.25587737,181.67,181.66,0.03]
[1739779183385,16.37049265,181.67,181.66,0.03]
[1739779183782,16.37049265,181.69,181.66,0.03]
[1739779184700,16.37049265,181.68,181.66,0.03]
[1739779187138,16.37049265,181.67,181.66,0.03]
[1739779187333,17.40279128,181.67,181.66,0.03]
[1739779188091,16.37049265,181.68,181.66,0.03]
[1739779188794,36.37049265,181.69,181.66,0.03]
[1739779189018,16.37049265,181.7,181.66,0.03]
[1739779189216,16.37049265,181.71,181.66,0.03]
[1739779189526,16.37049265,181.73,181.67,13.41184853]
[1739779189700,16.37049265,181.71,181.67,13.41184853]
[1739779189905,16.37049265,181.7,181.66,0.03]
[1739779190084,16.37049265,181.71,181.66,13.44184853]
[1739779190912,16.37049265,181.71,181.66,17.29504853]
[1739779191421,16.37049265,181.72,181.66,17.29504853]
[1739779191905,17.40256412,181.71,181.66,13.44184853]
[1739779192102,16.37049265,181.7,181.66,13.44184853]
[1739779193900,16.37049265,181.69,181.66,13.44184853]
[1739779194098,16.37049265,181.68,181.66,0.03]
[1739779194320,16.37049265,181.67,181.66,0.03]
[1739779196825,20.22359265,181.67,181.66,0.03]
[1739779197913,16.37049265,181.67,181.66,0.03]
[1739779198794,16.37049265,181.68,181.66,0.03]
[1739779199391,20.22319265,181.69,181.66,0.03]
[1739779199592,17.40276802,181.68,181.66,0.03]
[1739779199815,16.37049265,181.68,181.66,0.03]
[1739779201025,16.37049265,181.67,181.66,0.03]
[1739779203841,16.37049265,181.68,181.66,0.03]
[1739779204810,16.37049265,181.67,181.66,0.03]
[1739779205430,1.03228092,181.7,181.66,0.03]
[1739779205431,16.37049265,181.68,181.66,0.03]
[1739779205632,17.40291122,181.67,181.66,0.03]
[1739779206827,1.03241857,181.67,181.66,0.03]
[1739779207520,17.40291122,181.67,181.66,0.03]
[1739779208631,1.03241856,181.68,181.66,0.03]
[1739779209931,17.40291121,181.68,181.66,0.03]
[1739779210115,148.57049265,181.67,181.66,0.03]
[1739779210329,20.0,181.65,181.64,0.063]
[1739779210647,37.40319237,181.65,181.64,0.063]
[1739779211417,3.8518,181.73,181.64,16.43349265]
[1739779211620,1.0321309,181.72,181.65,29.78234118]
[1739779211927,17.40262355,181.72,181.65,29.78234118]
[1739779212112,20.22269265,181.71,181.64,0.063]
[1739779212311,17.40275553,181.7,181.64,0.063]
[1739779213140,1.03226288,181.7,181.64,0.063]
[1739779213842,17.40275553,181.7,181.64,0.063]
[1739779214248,1.03226288,181.7,181.64,0.063]
[1739779215220,1.03226288,181.7,181.64,29.84534118]
[1739779215421,1.03226288,181.7,181.65,16.37049265]
[1739779215647,20.0,181.71,181.66,16.37049265]
[1739779216243,87.28,181.74,181.64,3.9167]
[1739779216539,87.28,181.74,181.69,16.37049265]
[1739779216933,1.03197384,181.73,181.67,16.37049265]
[1739779217140,1.03197384,181.73,181.65,16.37049265]
[1739779217141,16.37049265,181.72,181.65,16.37049265]
[1739779217334,17.40246649,181.73,181.66,17.26514853]
[1739779217644,17.40246649,181.73,181.66,33.63564118]
[1739779217815,1.03197384,181.73,181.66,33.63564118]
[1739779218020,1.03197384,181.73,181.66,17.26514853]
[1739779218221,1.03197384,181.73,181.66,33.63564118]
[1739779218622,21.25426649,181.73,181.66,29.78234118]
[1739779219129,21.25426649,181.73,181.64,0.063]
[1739779219130,16.37049265,181.71,181.64,29.84534118]
[1739779219345,16.37049265,181.67,181.64,0.063]
[1739779219641,16.37049265,181.68,181.64,0.063]
[1739779219962,1.03233264,181.66,181.64,0.063]
[1739779220837,17.37049265,181.65,181.64,0.063]
[1739779221236,18.94119265,181.65,181.64,0.063]
[1739779221464,20.0,181.6,181.51,3.8563]
[1739779221649,20.0,181.6,181.51,13.41184853]
[1739779221650,16.37049265,181.58,181.51,13.41184853]
[1739779221988,16.37049265,181.61,181.53,16.37049265]
[1739779222147,1.03273439,181.63,181.55,16.37049265]
[1739779222342,16.37049265,181.62,181.55,16.37049265]
[1739779222540,17.40321654,181.61,181.54,16.37049265]
[1739779222777,16.37049265,181.6,181.53,16.37049265]
[1739779222950,17.4033902,181.59,181.52,16.37049265]
[1739779223942,21.2581902,181.59,181.52,16.37049265]
[1739779224267,16.37049265,181.58,181.51,16.37049265]
[1739779224956,17.4033902,181.59,181.52,20.22669265]
[1739779225150,1.03289755,181.59,181.52,20.22669265]
[1739779225975,21.2581902,181.59,181.52,16.37049265]
[1739779226266,16.37049265,181.58,181.51,29.78234118]
[1739779226443,16.37049265,181.58,181.51,33.63884118]
[1739779227763,21.2581902,181.59,181.52,16.37049265]
[1739779227953,21.2581902,181.59,181.52,20.22679265]
[1739779229449,1.0329229,181.6,181.54,16.37049265]
[1739779229748,1.03278932,181.61,181.55,16.37049265]
[1739779230446,1.03278932,181.61,181.56,16.37049265]
[1739779230653,183.5,181.62,181.57,16.43349265]
[1739779230986,82.3,181.62,181.57,16.43349265]
[1739779231150,83.33267026,181.62,181.57,16.43349265]
[1739779231351,82.3,181.62,181.57,16.43349265]
[1739779232979,82.3,181.62,181.57,20.28859265]
[1739779233749,101.2,181.64,181.59,16.37049265]
[1739779233949,82.3,181.66,181.61,16.37049265]
[1739779234884,82.3,181.66,181.61,20.22479265]
[1739779235185,82.3,181.66,181.62,16.37049265]
[1739779235393,101.2,181.68,181.63,16.37049265]
[1739779235579,3.8527,181.69,181.63,16.37049265]
[1739779235783,4.88498333,181.69,181.63,16.37049265]
[1739779236288,21.25547598,181.69,181.62,29.78234118]
[1739779236495,87.39,181.74,181.66,16.37049265]
[1739779236700,1.03205107,181.73,181.68,16.37049265]
[1739779236987,1.03205107,181.73,181.67,16.37049265]
[1739779237171,0.03,181.74,181.72,16.37049265]
[1739779237373,0.03,181.74,181.73,16.37049265]
[1739779237573,0.03,181.74,181.73,29.78234118]
[1739779238777,0.03,181.74,181.73,33.63414118]
[1739779239801,0.03,181.74,181.73,29.78234118]
[1739779240975,0.03,181.74,181.72,6.6407]
[1739779241176,0.03,181.74,181.72,13.41184853]
[1739779242087,0.03,181.74,181.72,29.78234118]
[1739779242895,0.03,181.74,181.69,3.8525]
[1739779243073,0.03,181.74,181.69,16.37049265]
[1739779243383,16.37049265,181.72,181.65,16.37049265]
[1739779243587,1.03218069,181.71,181.65,16.37049265]
[1739779243894,1.03213315,181.72,181.66,13.41184853]
[1739779244086,1.03213315,181.72,181.66,29.78234118]
[1739779244781,4.88423315,181.72,181.66,29.78234118]
[1739779245289,21.2547258,181.72,181.65,16.37049265]
[1739779246293,21.2547258,181.72,181.64,29.78234118]
[1739779246791,16.37049265,181.69,181.62,16.37049265]
[1739779246969,1.03231218,181.68,181.62,16.37049265]
[1739779247391,1.0323301,181.69,181.63,16.37049265]
[1739779248092,101.2,181.71,181.65,16.37049265]
[1739779248385,102.23217134,181.71,181.65,16.37049265]
[1739779248591,118.60266399,181.71,181.65,13.41184853]
[1739779248903,121.42279265,181.71,181.64,16.37049265]
[1739779249265,16.37049265,181.7,181.64,13.41184853]
[1739779249479,1.03228025,181.69,181.64,13.41184853]
[1739779249676,17.4027729,181.69,181.61,16.37049265]
[1739779249884,16.37049265,181.68,181.61,16.37049265]
[1739779250088,16.37049265,181.68,181.58,3.855]
[1739779250089,17.40294541,181.67,181.59,16.37049265]
[1739779250267,16.37049265,181.66,181.59,16.37049265]
[1739779250594,105.0518,181.73,181.65,16.37049265]
[1739779250767,1.03215652,181.72,181.68,16.37049265]
[1739779250972,101.2,181.73,181.68,16.37049265]
[1739779252693,101.2,181.73,181.68,20.22329265]
[1739779252893,101.2,181.73,181.68,16.37049265]
[1739779253586,102.2320481,181.73,181.68,16.37049265]
[1739779254195,102.2320481,181.73,181.67,16.37049265]
[1739779254591,102.2320481,181.73,181.68,16.37049265]
[1739779255095,106.0838481,181.73,181.68,16.37049265]
[1739779255301,105.0518,181.73,181.68,16.37049265]
[1739779255595,1.03211008,181.72,181.67,16.37049265]
[1739779256091,1.03211008,181.72,181.66,20.22379265]
[1739779256300,1.03211008,181.72,181.67,16.37049265]
[1739779258299,4.88421008,181.72,181.67,16.37049265]
[1739779258595,4.88421008,181.72,181.66,29.78234118]
[1739779260003,4.88421008,181.72,181.66,16.37049265]
[1739779260174,21.25470273,181.72,181.65,17.87419265]
[1739779260481,21.25470273,181.72,181.65,21.72769265]
[1739779260681,4.88421008,181.72,181.66,16.37049265]
[1739779261702,21.25470273,181.72,181.65,17.87419265]
[1739779262695,4.88421008,181.72,181.66,16.37049265]
[1739779263785,21.25470273,181.72,181.65,16.37049265]
[1739779263986,16.37049265,181.7,181.63,16.37049265]
[1739779264186,17.40283794,181.69,181.62,16.37049265]
[1739779264494,16.37049265,181.67,181.6,16.37049265]
[1739779264693,16.37049265,181.65,181.59,0.063]
[1739779264993,1.0325541,181.64,181.59,0.063]
[1739779265199,1.0325541,181.64,181.59,16.43349265]
[1739779265395,16.37049265,181.66,181.59,20.28829265]
[1739779265396,1.03254254,181.65,181.59,20.28829265]
[1739779265600,4.88604254,181.65,181.59,16.43349265]
[1739779266183,21.25653519,181.65,181.59,0.063]
[1739779266386,122.45653519,181.65,181.59,0.063]
[1739779266590,121.42399265,181.65,181.59,0.063]
[1739779267073,101.2,181.65,181.6,16.37049265]
[1739779267280,117.57049265,181.7,181.63,16.37049265]
[1739779267474,101.2,181.71,181.65,16.37049265]
[1739779267698,20.0,181.7,181.66,16.37049265]
[1739779268009,1.03222904,181.71,181.66,16.37049265]
[1739779268305,4.88452904,181.71,181.66,16.37049265]
[1739779268914,20.0,181.7,181.65,16.37049265]
[1739779269091,1.03225398,181.69,181.65,16.37049265]
[1739779269289,21.0322583,181.7,181.65,16.37049265]
[1739779270709,21.0322583,181.7,181.66,16.37049265]
[1739779271389,24.8847583,181.7,181.66,16.37049265]
[1739779271889,1.0322583,181.7,181.66,16.37049265]
[1739779272107,82.3,181.71,181.67,16.37049265]
[1739779272688,82.3,181.71,181.68,16.37049265]
[1739779273213,82.3,181.71,181.67,16.37049265]
[1739779274905,86.1522,181.71,181.67,16.37049265]
[1739779275514,82.3,181.71,181.67,16.37049265]
[1739779277518,82.3,181.71,181.68,16.37049265]
[1739779278488,86.1523,181.71,181.67,16.37049265]
[1739779278692,86.1523,181.71,181.66,16.37049265]
[1739779278992,82.3,181.71,181.66,16.37049265]
[1739779279613,16.37049265,181.7,181.63,20.0]
[1739779279819,1.03226868,181.69,181.64,16.37049265]
[1739779280106,16.37049265,181.66,181.6,1.6449]
[1739779280318,16.37049265,181.66,181.59,16.43349265]
[1739779280319,1.03251927,181.65,181.59,16.43349265]
[1739779280498,17.40301192,181.65,181.59,0.063]
[1739779280701,3.8537,181.64,181.59,0.063]
[1739779280907,1.03259108,181.63,181.59,0.063]
[1739779281106,4.88629108,181.64,181.59,0.063]
[1739779282921,16.37049265,181.63,181.59,0.063]
[1739779283227,16.37049265,181.61,181.59,0.063]
[1739779283437,1.0328142,181.6,181.59,0.063]
[1739779285200,4.8874142,181.6,181.59,0.063]
[1739779285401,21.25790685,181.6,181.59,0.063]
[1739779286999,1.0328142,181.6,181.59,0.063]
[1739779287206,4.8874142,181.6,181.59,0.063]
[1739779289020,87.1874142,181.6,181.59,0.063]
[1739779289625,103.55790685,181.6,181.59,0.063]
[1739779289811,102.52509265,181.6,181.59,0.063]
[1739779290008,21.25805226,181.6,181.59,0.063]
[1739779293527,22.25805226,181.6,181.59,0.063]
[1739779298232,20.0,181.58,181.57,0.063]
[1739779298530,37.40359375,181.58,181.57,0.063]
[1739779299306,41.25859375,181.58,181.57,0.063]
[1739779299634,4.8881011,181.58,181.57,0.063]
[1739779301117,21.25859375,181.58,181.57,0.063]
[1739779302617,15.39454376,181.58,181.57,0.063]
[1739779308231,4.8881011,181.58,181.57,0.063]
[1739779309645,1.03293026,181.6,181.57,0.063]
[1739779310844,169.66,181.61,181.58,10.50644266]
[1739779311418,169.66,181.61,181.57,1.7062]
[1739779311419,87.36,181.61,181.59,10.50644266]
[1739779311827,87.36,181.61,181.6,10.50644266]
[1739779313044,87.36,181.61,181.59,10.50644266]
[1739779313253,87.36,181.61,181.57,12.21264266]
[1739779313536,1.0326925,181.6,181.57,1.7062]
[1739779313739,1.0326925,181.6,181.57,0.063]
[1739779313952,11.53913516,181.6,181.57,0.063]
[1739779314333,1.0326925,181.6,181.57,0.063]
[1739779315047,4.8873925,181.6,181.57,0.063]
[1739779316850,4.9173925,181.6,181.57,0.063]
[1739779318461,21.32430566,181.6,181.57,0.063]
[1739779318622,122.52430566,181.6,181.57,0.063]
[1739779318821,16.40691316,181.59,181.57,0.063]
[1739779319132,118.63980466,181.58,181.57,0.063]
[1739779319322,16.40691316,181.58,181.57,0.063]
[1739779319521,17.43998757,181.58,181.57,0.063]
[1739779320352,21.29498757,181.58,181.57,0.063]
[1739779322024,4.88807441,181.58,181.57,0.063]
[1739779322458,3.8548,181.59,181.57,0.063]
[1739779322663,1.03291796,181.58,181.57,0.063]
[1739779322863,1.03277452,181.58,181.57,0.063]
[1739779323158,17.43968768,181.58,181.57,0.063]
[1739779324330,21.29468768,181.58,181.57,0.063]
[1739779324524,51.29468768,181.58,181.57,0.063]
[1739779324729,61.93228768,181.58,181.49,1.6211]
[1739779324956,16.40691316,181.55,181.49,1.6211]
[1739779325140,1.03324089,181.54,181.49,1.6211]
[1739779325332,83.33324089,181.54,181.49,1.6211]
[1739779325743,83.33324089,181.54,181.49,18.02801316]
[1739779326251,83.33324089,181.54,181.49,1.6211]
[1739779326437,3.8561,181.53,181.49,1.6211]
[1739779326630,1.03322237,181.52,181.49,1.6211]
[1739779327139,4.88933706,181.53,181.49,1.6211]
[1739779328153,4.88933706,181.53,181.48,16.40691316]
[1739779328154,4.88933706,181.53,181.47,16.43691316]
[1739779328545,183.5,181.52,181.47,0.03]
[1739779328751,1.03335473,181.51,181.47,0.03]
[1739779329552,3.8567,181.5,181.47,0.03]
[1739779331173,4.89003888,181.5,181.47,0.03]
[1739779332243,4.89004211,181.5,181.47,0.03]
[1739779333942,106.09004211,181.5,181.47,0.03]
[1739779334141,105.0567,181.5,181.47,0.03]
[1739779334564,1.03334964,181.49,181.47,0.03]
[1739779336069,4.89034964,181.49,181.47,0.03]
[1739779338248,3.857,181.49,181.47,0.03]
[1739779338467,4.89038674,181.49,181.47,0.03]
[1739779339367,3.857,181.49,181.47,0.03]
[1739779339670,105.057,181.49,181.47,0.03]
[1739779341378,15.9907408,181.49,181.47,0.03]
[1739779341647,10.5117408,181.48,181.47,0.03]
[1739779341868,20.0,181.48,181.47,0.03]
[1739779343560,23.8571,181.48,181.47,0.03]
[1739779344351,34.3688408,181.48,181.47,0.03]
[1739779347688,23.8571,181.48,181.47,0.03]
[1739779347992,34.3688408,181.48,181.47,0.03]
[1739779353579,3.8571,181.48,181.47,0.03]
[1739779353765,4.89056325,181.48,181.47,0.03]
[1739779354283,35.40230405,181.48,181.47,0.03]
[1739779360470,117.70230405,181.48,181.47,0.03]
[1739779360782,116.6688408,181.48,181.47,0.03]
[1739779365399,34.3688408,181.48,181.47,0.03]
[1739779365569,35.40242044,181.48,181.47,0.03]
[1739779375298,117.70242044,181.48,181.47,0.03]
[1739779375489,116.6688408,181.48,181.47,0.03]
[1739779376793,116.6688408,181.48,181.45,0.063]
[1739779376973,10.5117408,181.46,181.45,0.063]
[1739779379380,115.5692408,181.46,181.45,0.063]
[1739779380176,105.0575,181.46,181.45,0.063]
[1739779380493,101.2,181.46,181.45,0.063]
[1739779381403,105.0575,181.46,181.45,0.063]